bitfinex-derivatives/quotes_ETHF0:USTF0_20251025
["timestamp","ask_amount","ask_price","bid_price","bid_amount"]
[1761396880853,1.24446614,3948.0,3947.9,0.78458588]
[1761396881356,1.10766614,3948.0,3947.9,0.78458588]
[1761396881850,0.54851333,3948.0,3947.9,0.78458588]
[1761396882551,0.32931333,3948.0,3947.9,0.78458588]
[1761396883555,0.00221333,3948.0,3947.9,0.78458588]
[1761396887254,0.5463,3948.9,3948.7,0.3448]
[1761396887457,0.2192,3948.9,3948.8,0.7822]
[1761396887662,0.79797689,3948.9,3948.8,0.7822]
[1761396887855,1.12507689,3948.9,3948.8,0.7822]
[1761396888356,1.12812103,3948.9,3948.8,0.7822]
[1761396889354,0.90892103,3948.9,3948.8,0.7822]
[1761396891560,1.12812103,3948.9,3948.8,0.7822]
[1761396891765,1.34702103,3948.9,3948.8,0.7822]
[1761396892059,0.90892103,3948.9,3948.8,0.7822]
[1761396892458,1.12812103,3948.9,3948.8,0.7822]
[1761396893164,1.34702103,3948.9,3948.8,0.7822]
[1761396897363,1.34702103,3948.9,3948.8,0.4374]
[1761396897757,1.34702103,3948.9,3948.8,0.2186]
[1761396898973,0.4381,3948.7,3948.6,3.4264]
[1761396899173,1.34397689,3948.7,3948.6,3.4264]
[1761396901375,1.34397689,3948.7,3948.6,3.9936]
[1761396903663,0.9077926,3948.7,3948.6,3.9936]
[1761396904079,1.1212926,3948.7,3948.6,3.9936]
[1761396904480,0.5806926,3948.7,3948.6,3.9936]
[1761396907385,1.49029827,3948.7,3948.6,3.9936]
[1761396909983,0.5806926,3948.7,3948.6,3.9936]
[1761396910177,0.90960567,3949.3,3949.1,0.4636]
[1761396910378,0.90960567,3949.3,3949.2,3.9933]
[1761396910580,1.24750567,3949.3,3949.2,3.9933]
[1761396911183,1.47708684,3949.3,3949.2,3.9933]
[1761396911579,1.69918684,3949.3,3949.2,3.4384]
[1761396911779,1.69918684,3949.3,3949.2,3.2078]
[1761396912179,1.69843721,3949.3,3949.2,3.2078]
[1761396912384,0.78958117,3949.3,3949.2,3.2078]
[1761396912591,0.78958117,3949.3,3949.2,3.4384]
[1761396914185,1.69854236,3949.3,3949.2,3.9933]
[1761396914387,0.78958117,3949.3,3949.2,3.9933]
[1761396914586,1.69868218,3949.3,3949.2,3.9933]
[1761396914786,0.78958117,3949.3,3949.2,3.9933]
[1761396914987,1.69868199,3949.3,3949.2,3.9933]
[1761396916990,1.69868199,3949.3,3949.2,3.6714]
[1761396920088,0.78958117,3949.3,3949.2,3.6714]
[1761396920289,1.69841319,3949.3,3949.2,3.6714]
[1761396922189,2.27531782,3949.3,3949.2,3.6714]
[1761396922690,2.27531782,3949.3,3949.2,3.2078]
[1761396923588,2.27531782,3949.3,3949.2,3.4384]
[1761396923788,2.27531782,3949.3,3949.2,3.9933]
[1761396925989,2.05321782,3949.3,3949.2,3.9933]
[1761396926192,1.48891782,3949.3,3949.2,3.9933]
[1761396926789,1.82681782,3949.3,3949.2,3.9933]
[1761396930197,1.48891782,3949.3,3949.2,3.9933]
[1761396930696,1.82681782,3949.3,3949.2,3.9933]
[1761396932293,2.05321782,3949.3,3949.2,3.9933]
[1761396933896,2.27531782,3949.3,3949.2,3.6714]
[1761396934195,2.27531782,3949.3,3949.2,3.4384]
[1761396937198,1.3664858,3949.3,3949.2,3.4384]
[1761396938597,2.73089431,3949.3,3949.2,3.4262]
[1761396938801,2.73089431,3949.3,3949.2,3.2078]
[1761396938999,1.3664858,3949.3,3949.2,3.2078]
[1761396939207,2.73089431,3949.3,3949.2,3.2078]
[1761396940296,1.3664858,3949.3,3949.2,3.2078]
[1761396949810,1.3664858,3949.3,3949.2,3.9649]
[1761396951710,1.1443858,3949.3,3949.2,3.9649]
[1761396952105,1.94336106,3949.3,3949.2,3.9649]
[1761396952511,2.26876106,3949.3,3949.2,3.9649]
[1761396952812,1.94336106,3949.3,3949.2,3.9649]
[1761396953115,0.5800858,3949.3,3949.2,3.9649]
[1761396953504,1.48884441,3949.3,3949.2,3.9649]
[1761396954112,0.5800858,3949.3,3949.2,3.9649]
[1761396959417,0.90875861,3949.9,3949.7,0.54728]
[1761396959614,0.6942,3950.0,3949.9,0.2748]
[1761396959814,0.6942,3950.0,3949.9,0.1832]
[1761396960211,1.82755861,3950.0,3949.9,0.1832]
[1761396960414,1.8302512,3950.0,3949.9,0.1832]
[1761396961511,0.69689259,3950.0,3949.9,0.2748]
[1761396961706,0.55475861,3950.1,3949.9,0.1832]
[1761396961913,0.55475861,3950.1,3949.8,3.2078]
[1761396961914,0.3269,3950.2,3950.1,0.45562]
[1761396962110,0.1374,3950.5,3950.3,0.45561]
[1761396962316,0.3269,3950.7,3950.6,0.45557]
[1761396962612,0.1374,3951.0,3950.9,0.45554]
[1761396962817,0.13924794,3951.0,3950.9,3.21020497]
[1761396963216,0.46614794,3951.0,3950.9,3.21020497]
[1761396966524,0.3269,3951.4,3951.2,0.4555]
[1761396966715,0.4578,3951.5,3951.4,0.45548]
[1761396967519,0.45987151,3951.5,3951.4,0.45548]
[1761396973624,0.45987151,3951.5,3951.4,3.66328]
[1761396979520,0.45987151,3951.5,3951.4,11.66328]
[1761396989531,0.68847151,3951.5,3951.4,3.2078]
[1761396989727,1.47182619,3951.5,3951.4,3.2078]
[1761396992330,2.3791671,3951.5,3951.4,3.2078]
[1761396993620,2.3745671,3951.5,3951.4,3.2078]
[1761396995337,1.46722619,3951.5,3951.4,3.2078]
[1761396998037,0.89817151,3951.5,3951.4,3.2078]
[1761396998237,1.46816275,3951.5,3951.4,3.2078]
[1761397001437,2.26144677,3951.5,3951.4,3.2078]
[1761397001630,1.46816275,3951.5,3951.4,3.2078]
[1761397002133,2.83050833,3951.5,3951.4,3.2078]
[1761397003341,1.46816275,3951.5,3951.4,3.2078]
[1761397005436,2.37550927,3951.5,3951.4,3.2078]
[1761397010047,0.7631,3951.1,3951.0,3.2078]
[1761397010246,1.33309124,3951.1,3951.0,3.2078]
[1761397018457,1.11539124,3951.1,3951.0,3.2078]
[1761397019761,0.90089124,3951.1,3951.0,3.2078]
[1761397027069,0.4522,3951.0,3950.9,0.45793497]
[1761397027269,0.4522,3951.0,3950.9,3.66573497]
[1761397027566,0.13297151,3951.5,3951.4,0.45548]
[1761397027763,1.0268381,3951.5,3951.4,3.66328]
[1761397032770,0.45227151,3951.5,3951.4,3.66328]
[1761397034275,0.45227151,3951.5,3951.4,11.66328]
[1761397034471,0.13297151,3951.5,3951.4,11.66328]
[1761397034674,0.47587151,3951.5,3951.4,11.66328]
[1761397037078,0.47587151,3951.5,3951.4,3.66328]
[1761397039281,0.47587151,3951.5,3951.4,11.66328]
[1761397048290,0.1374,3952.0,3951.9,0.45542]
[1761397048493,0.1374,3952.0,3951.9,3.66322]
[1761397049290,0.70993825,3952.0,3951.9,3.66322]
[1761397049682,0.70993825,3952.0,3951.9,3.86262708]
[1761397050498,1.05283825,3952.0,3951.9,3.86262708]
[1761397058394,0.48303564,3952.0,3951.9,3.86262708]
[1761397059195,0.3488,3952.3,3951.9,3.86262708]
[1761397059492,1.49524558,3953.0,3951.9,3.86262708]
[1761397059493,1.25685524,3953.0,3952.7,0.47243]
[1761397059692,0.5764,3953.0,3952.9,3.2078]
[1761397059892,1.14214008,3953.0,3952.9,3.2078]
[1761397060289,1.14401222,3953.0,3952.9,3.2078]
[1761397061391,1.49281222,3953.0,3952.9,3.2078]
[1761397063005,2.40026746,3953.0,3952.9,3.2078]
[1761397063402,2.40026746,3953.0,3952.9,2.8536]
[1761397063601,1.49281222,3953.0,3952.9,2.8536]
[1761397068402,9.49281222,3953.0,3952.9,2.8536]
[1761397071517,10.85620674,3953.0,3952.9,2.8536]
[1761397072413,2.50740674,3953.0,3952.1,3.2078]
[1761397072608,0.7923,3952.2,3952.1,3.2078]
[1761397072802,1.35804008,3952.2,3952.1,3.2078]
[1761397073914,1.35804008,3952.2,3952.1,3.4409]
[1761397077115,1.35804008,3952.2,3952.1,4.0177]
[1761397077520,0.56574008,3952.2,3952.1,4.4731]
[1761397077708,0.3488,3952.6,3952.5,0.8099]
[1761397078020,1.13177431,3952.6,3952.5,4.0177]
[1761397078414,1.35877431,3952.6,3952.5,4.0177]
[1761397081517,0.91527431,3952.6,3952.5,4.0177]
[1761397082118,0.56647431,3952.6,3952.5,4.0177]
[1761397082715,0.90177431,3952.6,3952.5,4.0177]
[1761397083818,1.34897431,3952.6,3952.5,3.6663]
[1761397084008,1.34897431,3952.6,3952.5,4.0054]
[1761397084209,1.12937431,3952.6,3952.5,4.0054]
[1761397084619,0.90177431,3952.6,3952.5,4.0054]
[1761397085212,0.56647431,3952.6,3952.5,4.0054]
[1761397085614,0.00187214,3953.0,3952.9,0.7871]
[1761397085819,0.5681872,3953.0,3952.9,4.45021]
[1761397088222,0.00187214,3953.0,3952.9,4.45021]
[1761397098634,0.32297214,3953.0,3952.9,3.9949]
[1761397098838,0.67037214,3953.0,3952.9,3.9949]
[1761397099134,0.32297214,3953.0,3952.9,3.9949]
[1761397100026,0.00187214,3953.0,3952.9,3.9949]
[1761397100844,0.54087214,3953.0,3952.9,3.9949]
[1761397101139,0.89697214,3953.0,3952.9,3.2078]
[1761397101343,1.45542975,3953.0,3952.9,3.2078]
[1761397103240,0.88142975,3953.0,3952.9,4.0306]
[1761397103442,0.00187214,3953.0,3952.9,4.0306]
[1761397103647,0.32297214,3953.0,3952.9,4.0306]
[1761397104139,0.00187214,3953.0,3952.9,4.0306]
[1761397107241,0.3488,3954.0,3953.9,0.4697]
[1761397107454,0.90763282,3954.0,3953.9,4.0306]
[1761397107948,1.22394411,3954.0,3953.9,4.0306]
[1761397108340,1.22653502,3954.0,3953.9,4.03278796]
[1761397109141,1.45313502,3954.0,3953.9,4.03278796]
[1761397109444,0.89909091,3954.0,3953.9,4.03278796]
[1761397111351,1.45298582,3954.0,3953.9,4.03278796]
[1761397115058,0.55648582,3954.0,3953.9,4.03278796]
[1761397118059,0.5706,3954.6,3954.5,0.7827]
[1761397118253,1.12454869,3954.6,3954.5,12.9095]
[1761397118653,1.33844869,3954.6,3954.5,12.9095]
[1761397118855,1.33844869,3954.6,3954.5,12.5749]
[1761397119056,1.34037663,3954.6,3954.5,12.5749]
[1761397121363,0.78642794,3954.6,3954.5,12.5749]
[1761397121950,0.78642794,3954.6,3954.5,12.9095]
[1761397128074,0.55242794,3954.6,3954.5,12.9095]
[1761397128261,0.57252794,3954.6,3954.5,12.9095]
[1761397131172,0.78642794,3954.6,3954.5,12.9095]
[1761397132373,1.3415951,3954.6,3954.5,12.9095]
[1761397134075,1.1276951,3954.6,3954.5,12.9095]
[1761397134767,0.5570951,3954.6,3954.5,12.9095]
[1761397137180,0.8936951,3954.6,3954.5,12.9095]
[1761397144576,1.3467951,3954.6,3954.5,3.4413]
[1761397144773,1.3467951,3954.6,3954.5,3.2078]
[1761397146680,2.71049307,3954.6,3954.5,3.2078]
[1761397147076,1.3467951,3954.6,3954.5,3.2078]
[1761397148580,0.778,3954.4,3954.3,7.47]
[1761397148774,1.33316716,3954.4,3954.3,7.47]
[1761397149483,0.9156,3954.0,3953.9,3.20998796]
[1761397149672,1.47076716,3954.0,3953.9,12.12298796]
[1761397150280,2.37971559,3954.0,3953.9,12.12298796]
[1761397150480,2.37971559,3954.0,3953.9,12.35698796]
[1761397151378,1.47076716,3954.0,3953.9,12.35698796]
[1761397151986,1.47076716,3954.0,3953.9,12.90808796]
[1761397152177,2.37909968,3954.0,3953.9,12.90808796]
[1761397153083,1.47076716,3954.0,3953.9,12.12298796]
[1761397153280,1.92452996,3954.0,3953.9,12.90808796]
[1761397153583,0.55516716,3954.0,3953.9,12.90808796]
[1761397153783,0.87896716,3954.0,3953.9,12.90808796]
[1761397154178,1.11106716,3954.0,3953.9,12.90808796]
[1761397155075,0.55516716,3954.0,3953.9,12.90808796]
[1761397155281,0.3238,3954.2,3954.1,0.4591]
[1761397155482,0.88455802,3954.2,3954.1,0.7851]
[1761397156186,1.11665802,3954.2,3954.1,0.7851]
[1761397157287,1.11665802,3954.2,3954.1,3.9929]
[1761397157488,0.56075802,3954.2,3954.1,3.9929]
[1761397157686,0.88455802,3954.2,3954.1,3.9929]
[1761397158083,0.56075802,3954.2,3954.1,3.9929]
[1761397161492,0.00192794,3954.6,3954.5,0.9044]
[1761397161795,0.00192794,3954.6,3954.5,13.0272]
[1761397167498,0.32572794,3954.6,3954.5,13.0272]
[1761397167896,0.00192794,3954.6,3954.5,13.0272]
[1761397175301,0.00192794,3954.6,3954.5,9.8194]
[1761397175500,0.00192794,3954.6,3954.5,13.0272]
[1761397180407,0.56982794,3954.6,3954.5,12.9079]
[1761397180607,0.33662794,3954.6,3954.5,12.9079]
[1761397180906,0.00192794,3954.6,3954.5,12.9079]
[1761397181102,0.2332,3955.2,3955.1,0.7772]
[1761397181402,1.01337016,3955.2,3955.1,12.891]
[1761397181606,1.34807016,3955.2,3955.1,12.891]
[1761397181798,1.34807016,3955.2,3955.1,12.5676]
[1761397181998,1.35047824,3955.2,3955.1,12.5676]
[1761397183299,1.35047824,3955.2,3955.1,12.891]
[1761397187404,1.35047824,3955.2,3955.1,12.5676]
[1761397189610,1.35047824,3955.2,3955.1,12.3371]
[1761397191400,1.70457088,3955.2,3955.1,12.3371]
[1761397191605,2.25844104,3955.2,3955.1,12.5676]
[1761397192612,2.25844104,3955.2,3955.1,12.891]
[1761397198419,2.03214104,3955.2,3955.1,12.891]
[1761397200118,1.46424104,3955.2,3955.1,13.34606]
[1761397200323,0.55627824,3955.2,3955.1,12.891]
[1761397201424,0.00240808,3955.2,3955.1,12.891]
[1761397203420,0.00240808,3955.2,3955.1,3.985]
[1761397203421,0.32290808,3955.2,3955.1,3.985]
[1761397203625,0.00240808,3955.2,3955.1,12.888]
[1761397204319,0.32290808,3955.2,3955.1,12.888]
[1761397204531,0.55650808,3955.2,3955.1,12.888]
[1761397204733,0.78080808,3955.2,3955.1,12.888]
[1761397205124,0.55650808,3955.2,3955.1,12.888]
[1761397205321,1.11004554,3955.2,3955.1,12.888]
[1761397207131,1.33434554,3955.2,3955.1,3.6616]
[1761397207335,1.33434554,3955.2,3955.1,12.5656]
[1761397209135,0.78080808,3955.2,3955.1,12.8904]
[1761397209432,1.33435325,3955.2,3955.1,12.8904]
[1761397210436,1.11005325,3955.2,3955.1,12.8904]
[1761397210629,0.55595325,3955.2,3955.1,12.8904]
[1761397211025,1.36342265,3955.6,3955.4,0.3248]
[1761397211026,0.9079628,3955.6,3955.4,0.3248]
[1761397211234,0.9079628,3955.6,3955.5,12.8676]
[1761397211436,0.3502,3955.7,3955.5,12.5428]
[1761397211731,1.2581628,3955.9,3955.8,0.43]
[1761397212037,1.26096036,3955.9,3955.8,9.6698]
[1761397212338,1.48336036,3955.9,3955.8,9.6698]
[1761397212832,1.26096036,3955.9,3955.8,9.6698]
[1761397213032,0.00279756,3955.9,3955.8,9.6698]
[1761397213234,0.57539756,3955.9,3955.8,9.6698]
[1761397215437,0.35299756,3955.9,3955.8,9.6698]
[1761397216828,0.57539756,3955.9,3955.8,9.6698]
[1761397219042,0.3502,3955.8,3955.5,3.4234]
[1761397219239,0.7859,3955.7,3955.6,8.929]
[1761397219540,0.7859,3955.7,3955.6,9.1446]
[1761397219929,0.7859,3955.7,3955.5,3.2078]
[1761397219930,0.3502,3955.6,3955.5,3.2078]
[1761397220241,0.7859,3955.6,3955.5,9.6748]
[1761397220931,1.6938628,3955.6,3955.5,9.6748]
[1761397221136,0.7859,3955.6,3955.5,9.8904]
[1761397221431,1.6938628,3955.6,3955.5,9.8904]
[1761397222233,1.6938628,3955.6,3955.5,10.1048]
[1761397222435,1.6938628,3955.6,3955.5,10.4296]
[1761397222634,0.3502,3955.6,3955.5,10.4296]
[1761397223036,0.90209825,3955.6,3955.5,10.4296]
[1761397223338,0.55189825,3955.6,3955.5,10.4296]
[1761397229441,0.022,3957.8,3957.1,0.45483]
[1761397229747,0.3502,3957.7,3957.6,3.2078]
[1761397230042,0.3502,3957.7,3957.6,6.7388]
[1761397230445,0.3502,3957.7,3957.6,3.21069056]
[1761397230446,0.78838373,3957.7,3957.6,3.21069056]
[1761397230644,0.78838373,3957.7,3957.6,12.15669056]
[1761397231147,0.78838373,3957.7,3957.6,3.21069056]
[1761397231347,0.78838373,3957.7,3957.6,0.00289056]
[1761397234246,0.7859,3957.4,3957.3,6.4169709]
[1761397234451,0.3502,3956.9,3956.8,12.1558]
[1761397234843,0.3502,3956.8,3956.5,0.67799996]
[1761397235152,0.9221,3956.5,3956.4,3.2078]
[1761397235446,0.9221,3956.5,3956.4,3.21078503]
[1761397236045,0.1362,3956.5,3956.4,3.21078503]
[1761397236246,0.253,3959.9,3956.4,3.21078503]
[1761397236247,0.35268373,3957.7,3957.1,0.45482]
[1761397236450,0.35268373,3957.7,3957.5,3.2078]
[1761397236647,0.35268373,3957.7,3957.6,8.991]
[1761397236953,0.57508373,3957.7,3957.6,8.991]
[1761397237454,0.35268373,3957.7,3957.6,8.991]
[1761397238440,0.35268373,3957.7,3957.5,3.2078]
[1761397238441,0.4277,3957.6,3957.5,3.2078]
[1761397238652,0.6529,3957.6,3957.5,12.1978]
[1761397238855,0.4277,3958.5,3957.6,0.45477]
[1761397239052,0.4277,3958.3,3957.7,8.988]
[1761397239248,0.4277,3958.1,3957.7,8.988]
[1761397239441,0.1404,3958.5,3957.7,8.988]
[1761397239442,0.4497,3957.8,3957.7,8.988]
[1761397239846,0.4516565,3957.8,3957.7,8.988]
[1761397243161,0.4516565,3957.8,3957.5,3.2078]
[1761397243359,0.6768565,3957.8,3957.6,9.015]
[1761397243558,0.9265,3957.7,3957.6,9.015]
[1761397246259,0.9265,3957.6,3957.5,3.2078]
[1761397248561,0.94471106,3957.6,3957.5,3.2078]
[1761397248954,0.4988,3956.8,3956.7,3.2078]
[1761397249155,0.9265,3956.8,3956.7,3.2078]
[1761397249760,0.94471106,3956.8,3956.7,3.2078]
[1761397253168,8.94471106,3956.8,3956.7,3.2078]
[1761397253561,1.0669,3956.5,3956.4,9.01598503]
[1761397253770,1.08511106,3956.5,3956.4,9.01598503]
[1761397255057,1.08511106,3956.5,3956.4,0.00298503]
[1761397255869,1.09289539,3956.5,3956.4,0.00298503]
[1761397256370,1.10067972,3956.5,3956.4,0.00298503]
[1761397257974,1.10843301,3956.5,3956.4,0.00298503]
[1761397258782,1.11618631,3956.5,3956.4,0.00298503]
[1761397262288,0.1514,3955.5,3955.3,0.67597304]
[1761397262491,0.8983,3955.3,3955.2,3.2078]
[1761397262882,0.94758631,3955.3,3955.2,3.2078]
[1761397263177,0.94758631,3955.3,3955.2,3.21030395]
[1761397269295,0.69048631,3955.3,3955.2,3.21030395]
[1761397270589,0.43298631,3955.3,3955.2,3.21030395]
[1761397270980,0.69398631,3955.3,3955.2,3.21030395]
[1761397271479,0.93318631,3955.3,3955.2,3.21030395]
[1761397273389,0.93318631,3955.3,3955.2,0.00250395]
[1761397273587,0.5002,3954.9,3954.4,9.6528]
[1761397273783,1.0313,3954.5,3954.4,3.2078]
[1761397274495,1.03419937,3954.5,3954.4,3.20992745]
[1761397274890,1.03419937,3954.5,3954.4,0.00212745]
[1761397274891,1.08348568,3954.5,3954.4,0.00212745]
[1761397276184,9.08348568,3954.5,3953.9,3.2078]
[1761397276388,1.0313,3954.0,3953.9,3.2078]
[1761397276987,1.08058631,3954.0,3953.9,3.2078]
[1761397277193,1.08058631,3954.0,3953.9,3.20999651]
[1761397278594,1.08058631,3954.0,3953.9,0.00219651]
[1761397281891,0.3722,3953.9,3953.5,3.2078]
[1761397282094,0.5002,3953.6,3953.5,3.2078]
[1761397282290,0.8724,3953.6,3953.5,3.2078]
[1761397282997,0.92168631,3953.6,3953.5,3.2109519]
[1761397283901,0.92168631,3953.6,3953.5,0.0031519]
[1761397284100,0.8724,3953.1,3953.0,3.2078]
[1761397284397,0.5002,3953.1,3952.5,3.2078]
[1761397284598,0.8724,3952.6,3952.5,3.2078]
[1761397284994,0.92168631,3952.6,3952.5,3.20960088]
[1761397286196,0.42148631,3952.6,3952.5,3.20960088]
[1761397287706,0.68248631,3952.6,3952.5,3.20960088]
[1761397288210,0.92168631,3952.6,3952.5,3.20960088]
[1761397289294,0.42148631,3952.6,3952.5,3.20960088]
[1761397289605,0.04928631,3952.6,3952.5,3.20960088]
[1761397290308,0.42148631,3952.6,3952.5,3.20960088]
[1761397292298,0.92168631,3952.6,3952.5,3.20960088]
[1761397292899,0.7921,3952.0,3951.9,7.6478]
[1761397293097,1.0313,3952.0,3951.9,7.6478]
[1761397293907,1.0313,3952.0,3951.9,7.649961]
[1761397294106,1.08058631,3952.0,3951.9,7.649961]
[1761397294300,1.08058631,3952.0,3951.9,3.209961]
[1761397295699,1.08058631,3952.0,3951.9,0.002161]
[1761397296501,0.3722,3950.9,3950.5,3.2078]
[1761397296711,0.1589,3951.0,3950.5,3.2078]
[1761397296712,0.3722,3950.8,3950.5,3.2078]
[1761397297102,0.04928631,3950.7,3950.5,3.2078]
[1761397297412,0.05132894,3950.7,3950.6,0.45557]
[1761397297616,0.3722,3951.4,3950.8,0.45555]
[1761397297817,0.1589,3951.5,3951.0,3.2078]
[1761397298013,0.1589,3951.5,3951.4,3.2078]
[1761397298204,0.5913,3951.5,3951.4,3.2078]
[1761397298607,0.59308237,3951.5,3951.4,3.2078]
[1761397302311,0.00178237,3951.5,3951.4,3.2078]
[1761397303206,0.43418237,3951.5,3951.4,3.2078]
[1761397303406,0.59158237,3951.5,3951.4,3.2078]
[1761397307721,0.4324,3952.2,3951.6,0.45545]
[1761397307921,0.1574,3952.0,3951.7,9.029]
[1761397308124,0.4324,3951.9,3951.7,9.029]
[1761397308725,0.43518664,3951.9,3951.7,9.029]
[1761397309026,0.43518664,3951.9,3951.7,9.48444]
[1761397309718,0.1574,3951.5,3951.0,1.35194609]
[1761397309920,0.9693,3950.6,3950.5,0.00244488]
[1761397310122,0.9693,3950.6,3950.5,0.22184488]
[1761397310733,0.9693,3950.6,3950.5,0.00244488]
[1761397315326,0.4324,3950.3,3949.9,0.2194]
[1761397315521,0.4324,3950.2,3950.1,0.4388]
[1761397315831,0.6932,3950.2,3950.1,0.6582]
[1761397316031,0.6932,3950.2,3950.1,0.4388]
[1761397316230,0.6932,3950.2,3950.1,0.44124204]
[1761397317024,0.4324,3950.2,3950.1,0.66064204]
[1761397317526,0.1574,3950.5,3950.1,0.66064204]
[1761397317731,0.4324,3950.4,3950.3,0.6582]
[1761397318030,0.6932,3950.4,3950.3,0.6582]
[1761397318228,0.6932,3950.4,3950.3,0.4388]
[1761397320723,0.4784,3950.7,3950.4,0.3535]
[1761397320926,0.4784,3950.7,3950.6,0.9869]
[1761397322039,0.4784,3950.9,3950.8,0.9869]
[1761397322926,0.7815,3950.9,3950.8,0.9869]
[1761397324840,1.1156,3950.9,3950.8,0.3057]
[1761397325639,0.4784,3950.8,3950.5,3.5135]
[1761397326141,0.3031,3950.6,3950.5,3.8412]
[1761397326336,0.3031,3950.9,3950.8,0.6334]
[1761397326537,0.7815,3950.9,3950.8,0.9869]
[1761397329542,0.7815,3950.9,3950.8,0.6334]
[1761397329543,1.0796,3950.9,3950.8,0.6334]
[1761397329741,1.0796,3950.9,3950.8,0.3057]
[1761397330748,0.4784,3950.9,3950.8,0.9485]
[1761397331245,1.0894,3950.9,3950.8,0.624]
[1761397337650,1.0894,3950.9,3950.8,0.3057]
[1761397337846,0.9426,3950.5,3950.4,4.1643]
[1761397340644,0.6297,3950.5,3950.4,4.1643]
[1761397341045,0.9426,3950.5,3950.4,4.1643]
[1761397342651,0.4409,3950.5,3950.4,4.1643]
[1761397346254,0.9426,3950.5,3950.4,13.2053]
[1761397347358,0.611,3950.3,3950.2,0.90905002]
[1761397347654,1.0519,3950.2,3950.1,0.00244204]
[1761397373569,4.2597,3950.2,3950.1,0.00244204]
[1761397375970,0.303,3949.4,3949.3,4.11685002]
[1761397376172,1.0218,3949.4,3949.3,12.2208]
[1761397377074,1.0218,3949.4,3949.3,12.22262547]
[1761397377262,1.0218,3949.4,3949.3,9.92387549]
[1761397377466,1.0218,3949.4,3949.3,9.01482547]
[1761397377974,1.0218,3949.4,3949.3,0.00182547]
[1761397380074,1.0218,3949.4,3949.3,3.44162547]
[1761397381074,1.0218,3949.4,3949.3,3.61362547]
[1761397381377,0.8991,3949.9,3949.8,0.172]
[1761397382576,0.8991,3949.9,3949.8,0.344]
[1761397384476,0.6322,3949.9,3949.8,0.516]
[1761397384674,0.3794,3949.9,3949.8,0.516]
[1761397385372,0.6322,3949.9,3949.8,0.516]
[1761397385573,0.6322,3949.9,3949.8,0.344]
[1761397385778,0.8991,3949.9,3949.8,0.344]
[1761397387980,0.6322,3949.9,3949.8,0.516]
[1761397388482,0.6322,3949.9,3949.8,0.344]
[1761397388682,0.8847,3949.9,3949.8,0.344]
[1761397389787,0.5053,3949.9,3949.5,10.06455002]
[1761397389994,0.3624,3949.8,3949.5,9.1555]
[1761397390188,0.8831,3949.6,3949.5,9.1555]
[1761397390384,0.8831,3949.6,3949.5,9.303]
[1761397391089,0.6836,3950.0,3949.9,0.1475]
[1761397391289,0.6836,3950.0,3949.9,9.293]
[1761397391791,1.046,3950.0,3949.9,9.293]
[1761397392089,0.5253,3950.0,3949.9,9.4405]
[1761397393092,0.7935,3950.0,3949.9,9.4405]
[1761397393294,0.7935,3950.0,3949.9,9.293]
[1761397394500,0.7935,3950.0,3949.9,9.4405]
[1761397394700,0.7935,3950.0,3949.9,9.293]
[1761397395997,0.7935,3950.0,3949.9,9.4405]
[1761397397701,0.7935,3950.0,3949.9,9.4405]
[1761397398791,0.3624,3950.0,3949.9,9.4405]
[1761397398992,0.3624,3950.3,3950.2,0.4425]
[1761397399187,0.3624,3950.3,3950.2,9.4325]
[1761397399798,0.6306,3950.3,3950.2,9.4325]
[1761397400698,0.3624,3950.3,3950.2,9.4325]
[1761397403997,0.3624,3950.5,3950.4,0.4425]
[1761397404799,0.5253,3950.5,3950.4,0.4425]
[1761397405701,1.046,3950.5,3950.4,9.1325]
[1761397406303,1.046,3950.5,3950.4,0.1475]
[1761397406498,1.046,3950.5,3950.4,9.1325]
[1761397408103,1.046,3950.5,3950.4,9.28]
[1761397424615,1.046,3950.5,3950.2,4.11685002]
[1761397424616,0.3543,3950.4,3950.2,4.18805002]
[1761397424917,0.8392,3950.4,3950.3,8.968]
[1761397426113,0.8392,3950.4,3950.3,9.0392]
[1761397427513,0.8392,3950.4,3950.3,8.968]
[1761397427816,0.8392,3950.4,3950.3,9.1104]
[1761397428214,0.3543,3950.3,3950.1,0.98025002]
[1761397428414,0.8392,3950.3,3950.2,8.964]
[1761397429110,0.4849,3950.3,3950.0,0.98025002]
[1761397429316,0.8392,3950.2,3950.1,8.964]
[1761397429712,0.7615,3950.0,3949.9,1.05145002]
[1761397429912,0.9868,3950.0,3949.9,10.01545002]
[1761397430807,0.9868,3950.0,3949.9,9.1064]
[1761397431013,0.9868,3950.0,3949.9,10.01545002]
[1761397431717,0.9868,3950.0,3949.9,9.1064]
[1761397434316,0.9868,3950.0,3949.9,9.1034]
[1761397436218,0.9868,3950.0,3949.9,0.1424]
[1761397436407,0.3543,3949.9,3949.7,0.98025002]
[1761397436612,0.8392,3949.8,3949.7,0.0712]
[1761397436813,0.8392,3949.8,3949.7,9.0302]
[1761397438722,0.8392,3949.8,3949.7,9.1014]
[1761397440926,0.8392,3949.8,3949.7,0.1424]
[1761397441116,0.8392,3949.8,3949.7,9.0994]
[1761397441923,0.3543,3949.8,3949.7,9.1533]
[1761397442115,0.4831,3950.0,3949.9,0.1617]
[1761397443013,0.7118,3950.0,3949.9,0.1078]
[1761397446328,0.4831,3950.0,3949.9,0.1617]
[1761397447928,0.7118,3950.0,3949.9,0.1078]
[1761397448328,0.9269,3950.0,3949.9,0.1078]
[1761397448524,0.9269,3950.0,3949.7,8.957]
[1761397448525,0.3488,3949.9,3949.7,8.957]
[1761397448726,0.3488,3949.9,3949.3,0.91087549]
[1761397448727,0.7973,3949.7,3949.3,0.91087549]
[1761397448929,0.7236,3949.5,3949.4,9.063]
[1761397449427,0.7236,3949.5,3949.4,9.1165]
[1761397453937,0.7236,3949.5,3949.4,9.063]
[1761397454232,0.4902,3949.5,3949.4,9.063]
[1761397454436,0.7236,3949.5,3949.4,9.063]
[1761397454734,0.9387,3949.5,3949.4,9.063]
[1761397456439,0.9387,3949.5,3949.4,9.0095]
[1761397460646,0.9387,3949.5,3949.4,0.0535]